bitfinex/quotes_SOLUSD_20240708
["timestamp","ask_amount","ask_price","bid_price","bid_amount"]
[1720471635986,6.4245,138.88,138.82,0.17]
[1720471636186,23.58032296,138.9,138.82,0.17]
[1720471636187,16.0535,138.9,138.88,7.2004]
[1720471636381,16.0535,138.9,138.85,100.0]
[1720471636591,16.0535,138.9,138.89,7.1999]
[1720471636924,16.0535,138.9,138.84,20.14]
[1720471637273,16.0535,138.9,138.81,1493.092218]
[1720471637491,7.2006,138.88,138.81,1493.092218]
[1720471638386,7.2001,138.89,138.81,1493.092218]
[1720471638889,7.2005,138.88,138.81,1493.092218]
[1720471639082,7.201,138.87,138.81,1493.092218]
[1720471639278,7.3706,138.88,138.81,1493.092218]
[1720471639496,0.17,138.88,138.81,1593.092218]
[1720471639784,7.2006,138.88,138.81,1593.092218]
[1720471639984,7.2006,138.88,138.81,1493.092218]
[1720471640513,7.2011,138.87,138.81,1493.092218]
[1720471640735,7.2021,138.85,138.81,1493.092218]
[1720471640932,7.3716,138.86,138.81,1493.092218]
[1720471641231,0.17,138.86,138.81,1493.092218]
[1720471641437,7.2004,138.89,138.81,1493.092218]
[1720471641604,0.17,138.88,138.81,1493.092218]
[1720471641801,7.2035,138.82,138.81,1476.425618]
[1720471642197,7.5435,138.82,138.81,1476.425618]
[1720471642798,7.3735,138.82,138.81,1476.425618]
[1720471642998,0.17,138.82,138.81,1476.425618]
[1720471644446,7.3735,138.82,138.81,1476.425618]
[1720471645207,7.5435,138.82,138.81,1476.425618]
[1720471646237,7.3735,138.82,138.81,1476.425618]
[1720471646602,7.5435,138.82,138.81,1476.425618]
[1720471647231,14.711,138.82,138.81,1434.49891213]
[1720471647418,27.5135,138.82,138.81,1338.067225]
[1720471647609,27.79898994,138.82,138.81,1326.36127558]
[1720471647818,27.79898994,138.82,138.81,1324.1952106]
[1720471648647,7.82898994,138.82,138.81,1324.1952106]
[1720471649137,7.82898994,138.82,138.81,1320.98856175]
[1720471649317,7.82898994,138.82,138.81,1291.69347744]
[1720471649318,52.82898994,138.82,138.81,1291.69347744]
[1720471650019,52.82898994,138.82,138.81,1289.52616058]
[1720471650216,7.82898994,138.82,138.81,1284.39116058]
[1720471650424,52.82898994,138.82,138.81,1282.22384372]
[1720471650616,52.82898994,138.82,138.81,1277.88921]
[1720471650937,52.82898994,138.82,138.81,1273.55457628]
[1720471651235,95.31898994,138.82,138.81,981.30020592]
[1720471651423,95.31898994,138.82,138.81,894.92020592]
[1720471651631,102.94359617,138.82,138.81,882.19024203]
[1720471651958,102.94359617,138.82,138.81,880.19024203]
[1720471652115,102.94359617,138.82,138.81,841.27370203]
[1720471652315,102.94359617,138.82,138.81,836.87370203]
[1720471652518,102.94359617,138.82,138.81,834.70638517]
[1720471652917,102.94359617,138.82,138.81,832.53906831]
[1720471653120,15.11359617,138.82,138.81,832.53906831]
[1720471653416,23.90215034,138.82,138.81,830.37175145]
[1720471653618,23.90215034,138.82,138.81,828.20443459]
[1720471655008,24.07215034,138.82,138.81,828.20443459]
[1720471655547,69.24215034,138.82,138.81,828.20443459]
[1720471656735,89.24215034,138.82,138.81,816.55165777]
[1720471657266,96.77217249,138.82,138.81,814.39165777]
[1720471657451,96.77217249,138.82,138.81,812.22434091]
[1720471657631,96.77217249,138.82,138.81,810.05686747]
[1720471658142,96.77217249,138.82,138.81,779.68939403]
[1720471658448,31.43217249,138.82,138.81,779.68939403]
[1720471658833,23.80756626,138.82,138.81,779.68939403]
[1720471659926,24.14756626,138.82,138.81,779.68939403]
[1720471668058,23.80756626,138.82,138.81,779.68939403]
[1720471668870,23.80756626,138.82,138.81,771.48939403]
[1720471669257,24.14756626,138.82,138.81,771.48939403]
[1720471672070,24.14756626,138.82,138.81,759.48939403]
[1720471673765,24.14756626,138.82,138.81,756.74839403]
[1720471676560,69.14756626,138.82,138.81,718.87839403]
[1720471676791,89.14756626,138.82,138.81,716.87839403]
[1720471677081,89.14756626,138.82,138.81,692.270767]
[1720471677384,89.14756626,138.82,138.81,690.10338999]
[1720471677582,89.14756626,138.82,138.81,687.93601298]
[1720471678081,89.14756626,138.82,138.81,683.76863597]
[1720471678469,69.14756626,138.82,138.81,681.60125896]
[1720471678882,69.14756626,138.82,138.81,679.43388195]
[1720471679087,69.14756626,138.82,138.81,677.26650494]
[1720471679484,69.14756626,138.82,138.81,675.09912793]
[1720471679682,23.80756626,138.82,138.81,675.09912793]
[1720471680592,23.80756626,138.82,138.81,672.93143774]
[1720471680976,69.14756626,138.82,138.81,672.93143774]
[1720471681186,29.41595595,138.82,138.81,672.93143774]
[1720471681569,29.41595595,138.82,138.81,670.76374755]
[1720471681775,29.41595595,138.82,138.81,668.59605736]
[1720471682196,29.41595595,138.82,138.81,666.42836717]
[1720471682499,29.58595595,138.82,138.81,666.42836717]
[1720471682666,74.75595595,138.82,138.81,666.42836717]
[1720471682869,74.75595595,138.82,138.81,646.76083358]
[1720471683087,94.75595595,138.82,138.81,379.21347338]
[1720471683303,109.75595595,138.82,138.81,363.95585124]
[1720471683470,109.75595595,138.82,138.81,361.79585124]
[1720471683786,109.75595595,138.82,138.81,357.46078406]
[1720471683996,109.75595595,138.82,138.81,355.29325047]
[1720471684184,94.75595595,138.82,138.81,355.29325047]
[1720471684392,94.75595595,138.82,138.81,349.5108982]
[1720471684572,94.75595595,138.82,138.81,347.34336461]
[1720471684991,94.75595595,138.82,138.81,345.17583102]
[1720471685191,94.75595595,138.82,138.81,343.00829743]
[1720471685387,94.75595595,138.82,138.81,338.87809743]
[1720471685774,94.75595595,138.82,138.81,336.71056384]
[1720471686202,94.75595595,138.82,138.81,334.54293379]
[1720471686403,112.97841648,138.82,138.81,332.37530374]
[1720471686773,112.97841648,138.82,138.81,330.20767369]
[1720471687091,112.97841648,138.82,138.81,328.04004364]
[1720471687483,112.97651479,138.82,138.81,325.87241359]
[1720471687694,47.97651479,138.82,138.81,325.87241359]
[1720471688023,7.53002215,138.82,138.81,341.72261359]
[1720471688308,7.2035,138.82,138.81,341.72261359]
[1720471689197,18.0034,138.87,138.81,341.72261359]
[1720471689375,5.66575863,138.88,138.81,341.72261359]
[1720471689573,7.53140526,138.87,138.81,341.72261359]
[1720471690298,7.2035,138.82,138.81,341.72261359]
[1720471690503,7.3735,138.82,138.81,341.72261359]
[1720471691093,7.53140526,138.87,138.81,341.72261359]
[1720471692200,7.2035,138.82,138.81,341.72261359]
[1720471692390,7.3735,138.82,138.81,341.72261359]
[1720471692701,7.5435,138.82,138.81,341.72261359]
[1720471694682,7.5435,138.82,138.81,325.87241359]
[1720471696203,7.2035,138.82,138.81,325.87241359]
[1720471696506,7.3735,138.82,138.81,325.87241359]
[1720471696713,7.5435,138.82,138.81,325.87241359]
[1720471698611,7.5435,138.82,138.81,308.06072267]
[1720471698780,88.49588886,138.82,138.81,190.06246341]
[1720471698984,88.49588886,138.82,138.81,181.09307374]
[1720471699496,88.49588886,138.82,138.81,178.92647929]
[1720471699706,110.46539195,138.82,138.81,176.75988484]
[1720471699886,118.00119652,138.82,138.81,176.75988484]
[1720471700090,118.00119652,138.82,138.81,174.59329039]
[1720471700597,118.00119652,138.82,138.81,172.42669594]
[1720471700806,118.00119652,138.82,138.81,170.26010149]
[1720471701009,118.00119652,138.82,138.81,164.23130149]
[1720471701210,118.00119652,138.82,138.81,162.06470704]
[1720471701611,118.00119652,138.82,138.81,159.89811259]
[1720471701813,99.78289829,138.82,138.81,159.89811259]
[1720471702113,118.01934362,138.82,138.81,157.73032591]
[1720471702315,118.01934362,138.82,138.81,155.56253923]
[1720471702700,98.01934362,138.82,138.81,153.39475255]
[1720471703016,98.01934362,138.82,138.81,151.22696587]
[1720471703317,118.01934362,138.82,138.81,149.05917919]
[1720471703707,51.03169343,138.82,138.81,149.05917919]
[1720471704014,51.03169343,138.82,138.81,146.89139251]
[1720471704015,118.01937993,138.82,138.81,146.89139251]
[1720471704198,118.01937993,138.82,138.81,144.72360583]
[1720471704400,114.25018197,138.82,138.81,144.72360583]
[1720471704622,114.25018197,138.82,138.81,142.55581915]
[1720471704919,114.25018197,138.82,138.81,140.38803247]
[1720471705119,96.03169343,138.82,138.81,138.22040242]
[1720471705421,113.91162256,138.82,138.81,136.05277237]
[1720471705609,117.68094403,138.82,138.81,133.88514232]
[1720471705913,30.69169343,138.82,138.81,133.88514232]
[1720471707217,30.86169343,138.82,138.81,133.88514232]
[1720471707405,30.69169343,138.82,138.81,133.88514232]
[1720471707614,14.922069,138.82,138.81,133.88514232]
[1720471707797,32.930969,138.82,138.81,133.88514232]
[1720471708407,25.2124,138.82,138.81,133.88514232]
[1720471711005,25.3824,138.82,138.81,133.88514232]
[1720471711205,25.5524,138.82,138.81,133.88514232]
[1720471718818,25.3824,138.82,138.81,133.88514232]
[1720471719018,7.2035,138.82,138.81,133.88514232]
[1720471725530,7.3735,138.82,138.81,133.88514232]
[1720471725729,7.5435,138.82,138.81,133.88514232]
[1720471730734,7.5435,138.82,138.81,105.46705352]
[1720471733034,7.2035,138.82,138.81,105.46705352]
[1720471737149,8.39839227,138.86,138.82,16.5045]
[1720471737451,26.39689227,138.9,138.82,16.5045]
[1720471737647,33.93284183,138.9,138.82,16.5045]
[1720471737819,7.2015,138.86,138.82,23.7079]
[1720471738028,15.93434183,138.9,138.82,34.5133]
[1720471738241,15.93434183,138.9,138.83,6.4193]
[1720471738649,7.2018,138.86,138.83,6.4193]
[1720471740341,7.202,138.85,138.83,6.4193]
[1720471741160,7.2017,138.86,138.83,6.4193]
[1720471741360,7.2011,138.87,138.83,13.6222]
[1720471741570,7.2004,138.88,138.83,6.4193]
[1720471742342,7.2004,138.88,138.83,13.6221]
[1720471742541,0.17,138.89,138.83,6.4193]
[1720471742752,7.2018,138.86,138.83,6.4193]
[1720471743240,0.17,138.89,138.83,13.6222]
[1720471743444,7.2009,138.88,138.83,13.6222]
[1720471743665,7.2009,138.88,138.84,7.2025]
[1720471743845,7.2009,138.87,138.83,13.6222]
[1720471744160,7.2025,138.84,138.83,6.4193]
[1720471744366,18.1709,138.89,138.83,6.4193]
[1720471744547,7.2018,138.86,138.83,6.4193]
[1720471744745,7.2025,138.84,138.83,6.4193]
[1720471745063,7.3725,138.84,138.83,6.4193]
[1720471745364,18.1789,138.82,138.81,105.46705352]
[1720471745564,25.5524,138.82,138.81,101.3362512]
[1720471745766,25.5524,138.82,138.81,52.33047693]
[1720471746180,7.5435,138.82,138.81,52.33047693]
[1720471746359,0.34,138.82,138.81,52.33047693]
[1720471746678,7.5435,138.82,138.81,52.33047693]
[1720471747746,0.34,138.82,138.81,52.33047693]
[1720471748073,7.5435,138.82,138.81,52.33047693]
[1720471751359,7.5435,138.82,138.81,47.36847693]
[1720471751564,7.5435,138.82,138.81,45.20178619]
[1720471751765,7.5435,138.82,138.81,41.84178619]
[1720471752068,15.08101609,138.82,138.81,37.52178619]
[1720471752249,15.08101609,138.82,138.81,34.92178619]
[1720471753147,14.74101609,138.82,138.81,34.92178619]
[1720471754656,14.91101609,138.82,138.81,34.92178619]
[1720471754851,7.2031,138.83,138.81,50.44678619]
[1720471755276,7.2035,138.82,138.81,50.44678619]
[1720471756176,7.2027,138.84,138.81,50.44678619]
[1720471756886,7.203,138.83,138.82,6.0959]
[1720471757259,7.373,138.83,138.82,6.0959]
[1720471757567,7.203,138.83,138.82,6.0959]
[1720471760264,15.93650801,138.87,138.82,6.0959]
[1720471760481,0.34,138.86,138.82,6.0959]
[1720471760654,7.203,138.84,138.82,6.0959]
[1720471760970,0.34,138.86,138.82,6.0959]
[1720471761170,18.3439,138.86,138.82,6.0959]
[1720471761377,7.203,138.83,138.82,6.0959]
[1720471761961,7.3735,138.82,138.81,34.92178619]
[1720471762182,7.5435,138.82,138.81,34.92178619]
[1720471763460,25.5524,138.82,138.81,34.92178619]
[1720471765270,7.5435,138.82,138.81,34.92178619]
[1720471767771,25.5524,138.82,138.81,34.92178619]
[1720471768879,25.5524,138.82,138.81,21.05021958]
[1720471769382,26.23222327,138.82,138.81,21.05021958]
[1720471771268,7.88332327,138.82,138.81,21.05021958]
[1720471771786,7.2035,138.82,138.81,21.05021958]
[1720471771973,7.2025,138.84,138.81,21.05021958]
[1720471772376,15.93647589,138.86,138.81,21.05021958]
[1720471773682,7.2028,138.84,138.81,21.05021958]
[1720471779075,7.2021,138.85,138.81,28.25421958]
[1720471779676,7.53739638,138.89,138.82,21.7552]
[1720471779994,8.39839227,138.93,138.86,7.2012]
[1720471780187,8.39839227,138.93,138.85,18.0042]
[1720471780394,8.39839227,138.93,138.83,7.2027]
[1720471780697,8.39839227,138.93,138.82,39.763]
[1720471781282,7.2018,138.86,138.82,39.763]
[1720471781687,7.202,138.85,138.82,21.7552]
[1720471782197,18.0025,138.87,138.82,21.7552]
[1720471782499,7.203,138.83,138.82,21.7552]
[1720471782685,7.203,138.83,138.82,6.1804]
[1720471783074,7.373,138.83,138.82,6.1804]
[1720471787484,7.373,138.83,138.81,21.05021958]
[1720471787485,7.3735,138.82,138.81,21.05021958]
[1720471787701,7.5435,138.82,138.81,21.05021958]
[1720471790720,7.5435,138.82,138.81,5.74111685]
[1720471790932,7.5435,138.82,138.81,3.57458259]
[1720471791114,7.5435,138.82,138.81,2.16653426]
[1720471791308,7.2066,138.77,138.74,6.6016]
[1720471792713,7.2057,138.78,138.74,6.6016]
[1720471793231,7.2057,138.78,138.74,13.809]
[1720471793931,0.17,138.8,138.75,18.018]
[1720471794131,7.2056,138.79,138.75,18.018]
[1720471794322,0.17,138.8,138.75,18.018]
[1720471794522,7.2054,138.79,138.75,25.225]
[1720471794722,7.2057,138.78,138.75,18.018]
[1720471795235,7.2057,138.78,138.74,13.8091]
[1720471795737,7.2062,138.77,138.74,6.6016]
[1720471795934,7.2056,138.78,138.74,13.8092]
[1720471797336,7.2056,138.78,138.74,6.6016]
[1720471798033,35.9946,138.8,138.73,0.8597352]
[1720471798229,7.3777,138.74,138.73,0.8597352]
[1720471798432,7.5477,138.74,138.73,0.8597352]
[1720471799438,7.3777,138.74,138.73,0.8597352]
[1720471800221,7.2073,138.75,138.73,0.8597352]
[1720471800542,7.2074,138.75,138.73,0.8597352]
[1720471800714,0.67982327,138.78,138.73,0.8597352]
[1720471800915,0.67982327,138.78,138.73,18.8802352]
[1720471801120,7.207,138.76,138.73,0.8597352]
[1720471801318,18.0117,138.8,138.73,0.8597352]
[1720471801740,7.2068,138.76,138.73,0.8597352]
[1720471802910,7.2077,138.74,138.73,0.8597352]
[1720471803536,7.2068,138.76,138.73,0.8597352]
[1720471804141,7.2072,138.75,138.73,0.8597352]
[1720471804345,7.2068,138.76,138.73,0.8597352]
[1720471805642,18.0141,138.78,138.73,0.8597352]
[1720471805975,7.2077,138.74,138.73,0.8597352]
[1720471806638,7.2073,138.75,138.73,0.8597352]
[1720471807577,7.2074,138.75,138.73,0.8597352]
[1720471807749,18.3537,138.79,138.73,0.8597352]
[1720471808071,7.2068,138.76,138.73,0.8597352]
[1720471808679,7.2073,138.75,138.73,0.8597352]
[1720471809056,18.3537,138.79,138.73,0.8597352]
[1720471809057,7.207,138.76,138.73,0.8597352]
[1720471809685,7.2062,138.77,138.73,0.8597352]
[1720471810456,7.2062,138.77,138.73,8.0676352]
[1720471810939,7.2058,138.78,138.73,8.0676352]
[1720471811874,7.2062,138.77,138.73,8.0676352]
[1720471812442,7.5456,138.79,138.75,7.2069]
[1720471812641,7.2059,138.78,138.74,7.2075]
[1720471812842,7.2059,138.78,138.73,26.0877352]
[1720471813174,0.17,138.79,138.73,18.8797352]
[1720471814491,7.2064,138.77,138.73,26.0878352]
[1720471814661,7.2064,138.77,138.73,18.8797352]
[1720471816357,7.2064,138.77,138.73,26.0878352]
[1720471818189,7.2057,138.78,138.74,7.2073]
[1720471818693,7.2051,138.79,138.75,25.2247]
[1720471820500,7.2046,138.8,138.76,30.4144]
[1720471821701,7.2046,138.8,138.76,23.2079]
[1720471822998,0.67982327,138.81,138.78,7.2055]
[1720471823188,7.2039,138.82,138.77,18.0149]
[1720471823189,7.2036,138.82,138.77,18.0149]
[1720471823392,7.2042,138.81,138.77,25.2208]
[1720471823607,7.2042,138.81,138.77,18.0149]
[1720471824420,8.20056784,138.85,138.79,18.0119]
[1720471824626,7.88182327,138.85,138.8,13.492]
[1720471824909,7.2051,138.87,138.81,33.2743]
[1720471825120,14.919069,138.88,138.84,7.202]
[1720471825298,14.919069,138.88,138.83,25.2098]
[1720471826097,298.39497548,138.92,138.84,6.2879]
[1720471826098,259.6,138.92,138.84,6.2879]
[1720471826286,7.1995,138.9,138.85,7.2015]
[1720471826491,0.67982327,138.93,138.85,18.0045]
[1720471826693,0.67982327,138.93,138.87,7.2008]
[1720471827215,7.199,138.91,138.86,22.466]
[1720471829025,0.17,138.92,138.86,15.2646]
[1720471829200,7.1998,138.9,138.86,15.2646]
[1720471829533,7.2,138.89,138.86,15.2646]
[1720471829710,7.2005,138.88,138.86,15.2646]
[1720471829913,18.3366,138.92,138.86,15.2646]
[1720471830233,7.1998,138.9,138.86,15.2646]
[1720471830739,0.34,138.92,138.87,7.2008]
[1720471830902,0.34,138.92,138.86,33.2678]
[1720471830903,0.34,138.92,138.86,15.2646]
[1720471831106,7.2,138.89,138.86,15.2646]
[1720471831500,7.199,138.91,138.86,22.466]
[1720471832205,7.1995,138.9,138.86,22.466]
[1720471832414,7.2001,138.89,138.86,15.2646]
[1720471832600,7.2004,138.88,138.86,15.2646]
[1720471834326,7.2,138.89,138.86,15.2646]
[1720471834529,7.1993,138.91,138.86,15.2646]
[1720471835236,7.1993,138.91,138.86,22.4657]
[1720471836831,7.1993,138.91,138.87,7.2009]
[1720471837227,7.1984,138.92,138.88,7.2004]
[1720471838035,7.1984,138.92,138.87,25.203]
[1720471838232,7.1997,138.9,138.86,15.2646]
[1720471839441,7.1997,138.9,138.86,22.466]
[1720471840164,7.199,138.91,138.86,22.466]
[1720471841162,7.199,138.91,138.87,7.2009]
[1720471841869,28.38183168,138.96,138.86,15.2646]
[1720471841870,22.5392407,138.96,138.86,15.2646]
[1720471842161,13.79802619,139.13,138.87,24.4424]
[1720471842162,8.39839227,138.97,138.87,24.4424]
[1720471842363,8.39839227,138.97,138.89,7.1998]
[1720471843038,7.1978,138.93,138.88,7.2002]
[1720471843551,7.1975,138.94,138.89,7.1997]
[1720471843747,7.51622459,138.98,138.9,18.14]
[1720471843954,7.1962,138.97,138.92,7.1982]
[1720471844339,15.9128033,139.01,138.88,40.3126]
[1720471844561,7.1969,138.95,138.9,7.1993]
[1720471844775,7.1971,138.95,138.9,7.1993]
[1720471845075,0.17,138.99,138.92,17.9955]
[1720471845237,0.34,138.99,138.92,17.9955]
[1720471845443,7.1963,138.96,138.92,17.9955]
[1720471845645,0.34,138.99,138.91,7.1986]
[1720471845646,7.1969,138.95,138.91,7.1986]
[1720471845843,0.17,138.94,138.88,22.3127]
[1720471846174,7.1987,138.92,138.88,22.3127]
[1720471846745,7.1979,138.93,138.88,40.3134]
[1720471847159,7.1975,138.94,138.89,7.1998]
[1720471847575,7.197,138.95,138.9,7.1992]
[1720471848055,7.1973,138.94,138.89,7.1997]
[1720471849052,7.197,138.95,138.9,7.1993]
[1720471849254,7.1965,138.96,138.91,7.1987]
[1720471850275,7.1956,138.98,138.93,13.7638]
[1720471850483,33.8982033,139.01,138.93,13.7638]
[1720471850664,7.1958,138.97,138.93,13.7638]
[1720471850983,7.1954,138.98,138.93,13.7638]
[1720471851199,33.8982033,139.01,138.94,23.5199]
[1720471851388,5.80146298,139.06,138.94,16.3228]
[1720471851599,7.1937,139.01,138.96,25.1865]
[1720471852503,18.65912327,139.05,138.95,7.1966]
[1720471852504,17.9821,139.03,138.95,7.1966]
[1720471852664,0.67982327,139.05,138.94,16.3228]
[1720471852665,17.987,138.99,138.94,16.3228]
[1720471852870,0.67982327,139.03,138.94,16.3228]
[1720471853082,7.1959,138.97,138.94,16.3228]
[1720471853378,7.1964,138.96,138.94,16.3228]
[1720471854504,7.1959,138.97,138.94,16.3228]
[1720471857078,7.1963,138.96,138.94,16.3228]
[1720471857274,0.17,138.99,138.94,16.3228]
[1720471857480,7.1954,138.98,138.94,16.3228]
[1720471857905,7.1958,138.97,138.94,16.3228]
[1720471859079,7.1954,138.98,138.94,16.3228]
[1720471859287,7.1954,138.98,138.94,23.52]
[1720471859488,7.3649,138.99,138.94,23.52]
[1720471860089,7.3649,138.99,138.94,41.513]
[1720471860812,7.1944,139.0,138.95,7.1967]
[1720471861699,7.1944,139.0,138.96,7.1962]
[1720471862006,7.1938,139.01,138.96,25.1863]
[1720471862508,0.34,139.02,138.94,16.3228]
[1720471862802,7.1966,138.96,138.94,16.3228]
[1720471863603,0.17,138.94,138.88,6.504]
[1720471863814,7.1992,138.91,138.88,6.504]
[1720471864102,0.34,138.94,138.88,6.504]
[1720471864309,1.35547511,138.96,138.89,7.1995]
[1720471864495,7.1981,138.93,138.88,13.7041]
[1720471864887,7.1981,138.93,138.89,7.1998]
[1720471865390,7.1975,138.94,138.89,7.1998]
[1720471866295,7.199,138.91,138.88,6.504]
[1720471867620,0.17,138.93,138.88,6.504]
[1720471867806,0.34,138.93,138.88,6.504]
[1720471868002,7.1984,138.92,138.88,6.504]
[1720471868208,1.35547511,138.96,138.88,6.504]
[1720471868427,7.1999,138.89,138.88,6.504]
[1720471868727,7.1991,138.91,138.88,6.504]
[1720471869219,7.1994,138.9,138.88,6.504]
[1720471871020,7.199,138.91,138.88,6.504]
[1720471871204,0.17,138.93,138.88,6.504]
[1720471871205,7.1985,138.92,138.88,6.504]
[1720471871413,7.1989,138.91,138.88,6.504]
[1720471871799,7.1995,138.9,138.88,6.504]
[1720471872486,7.1999,138.89,138.88,6.504]
[1720471872922,7.1999,138.89,138.83,21.9887]
[1720471872923,7.2011,138.87,138.83,21.9887]
[1720471874008,7.2006,138.88,138.83,29.1916]
[1720471875211,7.2001,138.89,138.84,7.2024]
[1720471876919,1.35547511,138.91,138.88,17.9999]
[1720471877108,7.1989,138.91,138.87,7.2008]
[1720471877324,7.1985,138.92,138.87,7.2008]
[1720471877513,7.1992,138.91,138.85,25.2055]
[1720471877895,17.9924,138.95,138.85,25.2055]
[1720471878098,17.9977,138.91,138.83,21.9887]
[1720471878620,0.34,138.9,138.83,21.9887]
[1720471878911,7.2006,138.88,138.83,29.1914]
[1720471879112,7.2006,138.88,138.84,7.2025]
[1720471879312,7.2006,138.88,138.83,47.199]
[1720471879493,7.2005,138.88,138.83,47.199]
[1720471880107,7.201,138.87,138.83,39.9961]
[1720471881097,7.201,138.87,138.83,21.9887]
[1720471881098,7.2021,138.85,138.83,21.9887]
[1720471881304,7.2022,138.85,138.83,21.9887]
[1720471883019,7.2022,138.85,138.8,25.2152]
[1720471883020,0.17,138.84,138.8,6.152]
[1720471883224,7.2036,138.82,138.8,6.152]
[1720471883518,0.17,138.85,138.8,6.152]
[1720471883519,7.2032,138.83,138.8,6.152]
[1720471884908,7.3727,138.84,138.8,6.152]
[1720471885719,7.372,138.85,138.8,13.3565]
[1720471885921,7.202,138.85,138.8,13.3565]
[1720471887625,7.2025,138.84,138.8,13.3565]
[1720471887922,7.2025,138.84,138.8,6.152]
[1720471888224,7.203,138.83,138.8,6.152]
[1720471891522,0.17,138.86,138.8,6.152]
[1720471891523,0.17,138.84,138.8,6.152]
[1720471891726,7.2037,138.82,138.8,6.152]
[1720471892740,7.2036,138.82,138.8,6.152]
[1720471893730,7.2051,138.79,138.74,29.6276]
[1720471893910,7.2062,138.77,138.74,22.4203]
[1720471894111,0.17,138.8,138.74,29.6279]
[1720471894318,7.2057,138.78,138.74,22.4203]
[1720471895528,0.17,138.78,138.74,22.4203]
[1720471895734,7.2063,138.77,138.74,22.4203]
[1720471896230,7.2067,138.76,138.74,22.4203]
[1720471896419,7.2063,138.77,138.74,22.4203]
[1720471896938,7.2067,138.76,138.74,22.4203]
[1720471897319,0.17,138.78,138.74,22.4203]
[1720471898214,7.2053,138.79,138.74,29.6279]
[1720471898928,7.52232974,138.82,138.74,40.4391]
[1720471899132,52.6752,138.85,138.74,40.4391]
[1720471899337,7.52145398,138.84,138.74,40.4391]
[1720471899629,18.0076,138.83,138.74,40.4391]
[1720471899829,7.52145398,138.84,138.76,18.0166]
[1720471900017,7.2039,138.82,138.77,7.2059]
[1720471900429,7.52145398,138.84,138.74,22.4203]
[1720471900729,7.2057,138.78,138.74,22.4203]
[1720471900935,0.17,138.83,138.75,18.0172]
[1720471901113,7.2044,138.81,138.76,7.2064]
[1720471901629,7.2046,138.8,138.75,25.2242]
[1720471901845,18.348,138.83,138.75,25.2242]
[1720471902010,0.17,138.8,138.74,22.4203]
[1720471902211,7.206,138.78,138.74,22.4203]
[1720471902434,7.2061,138.77,138.74,22.4203]
[1720471902637,0.34,138.8,138.74,22.4203]
[1720471902638,7.2058,138.78,138.74,22.4203]
[1720471905723,7.2058,138.78,138.74,29.6279]
[1720471906350,7.3764,138.77,138.74,22.4203]
[1720471906636,7.2063,138.77,138.74,22.4203]
[1720471907227,7.52145398,138.84,138.82,7.2035]
[1720471907534,7.2015,138.86,138.82,6.3106]
[1720471909024,7.202,138.85,138.82,6.3106]
[1720471910030,25.52013808,138.89,138.82,6.3106]
[1720471910031,7.3716,138.86,138.82,6.3106]
[1720471910651,0.17,138.87,138.83,18.0068]
[1720471910816,0.17,138.87,138.82,13.5139]
[1720471910817,7.3711,138.87,138.82,13.5139]
[1720471911150,7.2015,138.86,138.82,6.3106]
[1720471912753,7.2021,138.85,138.82,6.3106]
[1720471914355,7.2016,138.86,138.82,6.3106]
[1720471914868,7.2016,138.86,138.82,13.514]
[1720471915262,7.2011,138.87,138.82,13.514]
[1720471915437,7.2,138.89,138.84,7.2022]
[1720471915763,7.2,138.89,138.84,25.2084]
[1720471916569,7.2013,138.87,138.82,13.5138]
[1720471917152,7.2006,138.88,138.83,7.203]
[1720471917333,7.2005,138.88,138.84,7.2023]
[1720471917526,7.201,138.87,138.83,18.0074]
[1720471918164,7.201,138.87,138.82,13.514]
[1720471919155,7.2016,138.86,138.82,6.3106]
[1720471921670,7.2016,138.86,138.82,13.5141]
[1720471921963,7.2011,138.87,138.82,13.5141]
[1720471922160,0.17,138.89,138.82,24.3194]
[1720471922378,7.201,138.87,138.82,24.3194]
[1720471922572,7.2015,138.86,138.82,24.3194]
[1720471924056,7.2015,138.86,138.82,31.5229]